bitfinex-derivatives/quotes_ETHF0:USTF0_20251204
["timestamp","ask_amount","ask_price","bid_price","bid_amount"]
[1764809265623,5.15840768,3195.7,3195.6,2.50449888]
[1764809266623,5.15840768,3195.7,3195.6,4.83089888]
[1764809268021,0.32450768,3195.7,3195.6,4.83089888]
[1764809268417,0.32450768,3195.7,3195.6,2.33039888]
[1764809268619,5.15911856,3196.1,3196.0,4.8708]
[1764809268819,5.15911814,3196.1,3196.0,4.8708]
[1764809269317,4.8339,3195.7,3195.6,3.38526344]
[1764809269514,5.15911814,3195.7,3195.6,5.71166344]
[1764809269720,2.81161814,3195.7,3195.6,5.71166344]
[1764809270326,2.81161814,3195.7,3195.6,4.87479888]
[1764809272133,5.15911814,3195.7,3195.6,0.00399888]
[1764809272521,5.15911814,3195.7,3195.6,0.84391799]
[1764809272829,2.81161814,3195.7,3195.6,4.87479888]
[1764809274432,5.15911814,3195.7,3195.6,4.87479888]
[1764809274633,5.15911814,3195.7,3195.6,2.54839888]
[1764809274836,5.15911814,3195.7,3195.6,0.00399888]
[1764809275034,4.8339,3195.3,3195.2,0.91780237]
[1764809275235,2.81161814,3195.3,3195.2,4.8708]
[1764809275941,2.81161814,3195.3,3195.2,4.87370363]
[1764809276129,5.15911814,3195.3,3195.2,4.87370363]
[1764809277133,2.4864,3195.3,3195.2,4.87370363]
[1764809277737,2.81244091,3195.3,3195.2,4.87370363]
[1764809278138,0.32604091,3195.3,3195.2,4.87370363]
[1764809278337,4.8339,3195.7,3195.6,2.5444]
[1764809278634,4.8339,3195.3,3195.2,1.66763625]
[1764809278839,4.8339,3195.3,3195.2,4.87370363]
[1764809279535,2.4864,3195.3,3195.2,4.87370363]
[1764809280240,3.2078,3195.8,3195.2,4.87370363]
[1764809280537,0.32607139,3195.7,3195.2,4.87370363]
[1764809280734,5.15997139,3195.7,3195.6,2.5444]
[1764809281131,5.15996978,3195.7,3195.6,4.8708]
[1764809281641,0.32606978,3195.7,3195.6,4.8708]
[1764809281842,3.2078,3195.8,3195.7,4.8708]
[1764809282135,6.0202735,3195.8,3195.7,4.8708]
[1764809282531,3.5338735,3195.8,3195.7,4.8708]
[1764809282730,0.3260735,3195.8,3195.7,4.8708]
[1764809283040,2.4864,3196.2,3196.1,4.8708]
[1764809283239,0.32599746,3196.2,3196.1,4.8708]
[1764809283433,0.00469954,3196.3,3196.1,4.8708]
[1764809283637,0.00469954,3196.3,3196.2,4.8226]
[1764809283840,2.29749954,3196.3,3196.2,4.8226]
[1764809284031,0.00469954,3196.3,3196.2,4.8226]
[1764809284739,2.29749954,3196.3,3196.2,4.8226]
[1764809285032,0.00469954,3196.3,3196.2,4.8226]
[1764809285742,3.2078,3197.4,3196.5,1.4085]
[1764809285943,0.32573544,3197.3,3197.2,4.8226]
[1764809286436,2.61853544,3197.3,3197.2,4.8226]
[1764809286637,0.00309958,3197.3,3197.2,4.8226]
[1764809287839,4.76789958,3197.3,3197.2,2.402]
[1764809288045,4.7648,3197.1,3197.0,6.2311]
[1764809288247,6.2414,3197.0,3196.9,0.00469197]
[1764809288446,9.77403555,3197.0,3196.9,0.00469197]
[1764809289447,0.00309958,3197.3,3196.9,4.82729197]
[1764809289647,0.32786647,3197.3,3196.9,4.82729197]
[1764809289839,5.09266647,3197.3,3197.2,2.402]
[1764809290144,2.2928,3197.0,3196.9,0.00469197]
[1764809290344,4.7648,3197.0,3196.9,4.82729197]
[1764809290541,4.7648,3197.0,3196.9,2.40669197]
[1764809290847,0.00309958,3197.3,3196.9,4.82729197]
[1764809291243,2.29589958,3197.3,3197.2,2.402]
[1764809291446,4.76789958,3197.3,3197.2,2.402]
[1764809291946,4.76789958,3197.3,3197.2,4.8226]
[1764809292336,2.2928,3197.1,3197.0,6.2311]
[1764809292748,4.7648,3197.1,3197.0,6.2311]
[1764809293438,2.29589958,3197.3,3197.2,4.8226]
[1764809293643,0.00309958,3197.3,3197.2,4.8226]
[1764809295849,4.7648,3197.1,3197.0,3.2078]
[1764809296249,4.7648,3197.1,3197.0,5.6098]
[1764809296438,2.2928,3197.1,3197.0,8.0304]
[1764809297752,2.29589958,3197.3,3197.2,4.8226]
[1764809298050,0.00309958,3197.3,3197.2,4.8226]
[1764809300158,5.5006,3198.3,3198.2,2.402]
[1764809300452,7.9726,3198.3,3198.2,2.402]
[1764809300652,7.9726,3198.3,3198.0,1.4085]
[1764809300952,5.5006,3198.3,3198.2,4.8226]
[1764809301258,7.9761896,3198.3,3198.2,2.40531229]
[1764809301552,4.7648,3197.7,3197.6,3.2078]
[1764809301748,2.472,3197.2,3197.1,3.2078]
[1764809301947,4.7648,3197.2,3197.1,3.2078]
[1764809302145,4.7648,3197.2,3197.1,5.6098]
[1764809302349,2.2928,3197.2,3197.1,8.0304]
[1764809302549,2.2928,3197.2,3197.1,8.03337057]
[1764809303557,3.2078,3197.9,3197.1,8.03337057]
[1764809304355,2.2928,3197.9,3197.8,4.8226]
[1764809304557,3.2113896,3198.3,3197.8,4.8226]
[1764809306463,3.2113896,3198.3,3198.2,2.402]
[1764809306464,7.6846896,3198.3,3198.2,2.402]
[1764809307268,7.6846896,3198.3,3198.2,2.2233]
[1764809307751,7.6846896,3198.3,3197.5,4.6163]
[1764809308465,4.2883,3197.6,3197.5,7.6953]
[1764809308661,4.2883,3197.6,3197.5,3.2078]
[1764809309260,2.1078,3197.6,3197.5,7.6953]
[1764809309563,4.2883,3197.6,3197.5,3.2078]
[1764809309760,4.2883,3197.6,3197.5,5.4311]
[1764809309961,1.2068,3198.0,3197.5,7.6953]
[1764809310260,1.4766,3199.0,3198.2,4.4875]
[1764809310455,2.4322736,3198.9,3198.8,2.2233]
[1764809311065,4.6127736,3198.9,3198.8,2.2233]
[1764809311268,4.2883,3198.6,3198.5,0.00469197]
[1764809311565,2.11082443,3198.9,3198.8,2.2233]
[1764809311860,1.88880619,3199.8,3198.8,7.6953]
[1764809312053,0.32453853,3199.4,3198.8,7.6953]
[1764809312252,4.2883,3199.3,3199.2,3.2078]
[1764809312557,4.61283853,3199.3,3199.2,3.2078]
[1764809312865,4.61657753,3199.3,3199.2,3.2078]
[1764809313259,0.003739,3199.3,3199.2,7.6953]
[1764809313458,1.0906,3200.0,3199.2,7.6953]
[1764809313762,0.32448111,3199.9,3199.2,7.6953]
[1764809314060,4.2114,3199.3,3199.2,5.4311]
[1764809314266,4.2114,3199.3,3199.2,3.2078]
[1764809314465,4.21543978,3199.3,3199.2,3.2078]
[1764809314665,4.21543978,3199.3,3199.2,5.2271]
[1764809315165,2.14763978,3199.3,3199.2,5.2271]
[1764809315462,0.1562,3200.4,3199.2,5.2271]
[1764809315463,3.2078,3200.6,3199.2,13.496]
[1764809315660,0.32426326,3200.5,3199.7,3.2078]
[1764809316261,1.53546326,3200.5,3199.7,3.2078]
[1764809316560,0.32426326,3200.4,3199.7,3.21130247]
[1764809318859,2.1436,3199.8,3199.7,5.23060247]
[1764809319055,7.4192,3199.8,3199.7,0.00350247]
[1764809319358,7.4192,3199.8,3198.7,3.2078]
[1764809319359,7.74271862,3199.8,3198.7,3.2078]
[1764809319553,0.32351862,3199.7,3198.7,3.2078]
[1764809320062,3.2078,3199.4,3198.7,3.2078]
[1764809320264,3.2078,3199.4,3198.7,3.21133082]
[1764809321556,1.2112,3199.5,3198.7,3.21133082]
[1764809322771,0.32363696,3199.4,3198.7,3.21133082]
[1764809323158,2.1436,3198.8,3198.7,5.23063082]
[1764809323563,1.2112,3199.5,3198.7,7.49953082]
[1764809323763,0.32369828,3199.4,3198.7,7.49953082]
[1764809325265,4.2114,3199.5,3199.4,2.0193]
[1764809325477,4.53512723,3199.5,3199.1,3.2078]
[1764809325666,2.1436,3199.5,3199.4,4.2882]
[1764809326565,3.2078,3200.1,3199.5,1.2779]
[1764809326765,2.46923753,3200.0,3199.9,1.9912]
[1764809327171,2.46923753,3200.0,3199.9,4.0919]
[1764809327667,4.42268216,3200.5,3199.9,4.0919]
[1764809327874,2.46923907,3200.4,3200.3,1.9912]
[1764809328172,4.58873907,3200.4,3200.3,1.9912]
[1764809328871,2.46923907,3200.4,3200.3,1.9912]
[1764809329064,2.46923907,3200.4,3200.3,4.0919]
[1764809329568,0.00368216,3200.5,3200.4,4.0919]
[1764809330072,0.00368216,3200.5,3200.4,7.2997]
[1764809330764,0.32736708,3200.5,3200.4,7.2997]
[1764809330965,0.00368216,3200.5,3200.4,7.2997]
[1764809332167,4.26868216,3200.5,3200.4,3.2078]
[1764809332372,0.00368216,3200.5,3200.4,7.2997]
[1764809333673,0.00368216,3200.5,3200.1,0.00469197]
[1764809333674,8.83527216,3200.5,3200.1,0.00469197]
[1764809333971,4.265,3200.2,3200.1,0.00469197]
[1764809334167,4.58861901,3200.2,3200.1,0.00469197]
[1764809336171,0.32361901,3200.2,3200.1,4.09659197]
[1764809336369,0.00368216,3200.5,3200.4,4.0919]
[1764809337488,4.265,3200.2,3200.1,0.00469197]
[1764809337781,4.5891611,3200.2,3200.1,0.00469197]
[1764809339376,4.5891611,3200.2,3200.1,1.99589197]
[1764809339771,0.3241611,3200.2,3200.1,7.30439197]
[1764809340076,4.58952167,3200.2,3200.1,0.00469197]
[1764809340586,0.00368216,3200.5,3200.4,4.0919]
[1764809341079,0.00368216,3200.5,3200.1,0.00469197]
[1764809341080,4.26868216,3200.5,3200.1,0.00469197]
[1764809341384,2.47025887,3200.4,3200.3,1.9912]
[1764809341682,2.1455,3200.2,3200.1,1.99589197]
[1764809341885,2.1455,3200.2,3200.1,4.09659197]
[1764809342382,4.58985715,3200.2,3200.1,0.00469197]
[1764809343481,2.47035715,3200.2,3200.1,3.96179197]
[1764809344679,2.47035715,3200.2,3200.1,1.98409197]
[1764809344680,4.50585715,3200.2,3200.1,1.98409197]
[1764809344887,4.50585715,3200.2,3200.1,0.00469197]
[1764809346686,4.0572,3199.6,3199.5,3.2078]
[1764809346882,4.38205715,3199.6,3199.5,3.2078]
[1764809347078,2.34655715,3199.6,3199.5,7.1649]
[1764809347384,0.32485715,3199.6,3199.5,8.3242]
[1764809347587,0.1562,3200.4,3199.5,8.3242]
[1764809347779,0.32965284,3200.3,3199.6,0.00469197]
[1764809347980,0.32496087,3200.2,3199.6,0.00469197]
[1764809348284,0.32496087,3200.1,3199.6,0.00469197]
[1764809348590,2.34666087,3200.0,3199.9,1.9794]
[1764809348788,4.38216087,3200.0,3199.9,1.9794]
[1764809349686,4.38216087,3200.0,3199.6,0.00469197]
[1764809349888,4.0572,3199.7,3199.6,0.00469197]
[1764809350191,4.38216087,3199.7,3199.6,0.00469197]
[1764809353591,2.34666087,3199.7,3199.6,1.98409197]
[1764809353796,4.38216087,3199.7,3199.6,0.00469197]
[1764809358598,4.38216087,3199.7,3199.6,3.96179197]
[1764809358797,2.34666087,3199.7,3199.6,3.96179197]
[1764809358997,4.38216087,3199.7,3199.6,3.96179197]
[1764809359298,4.38216087,3199.7,3199.6,1.98409197]
[1764809360401,0.32496087,3199.7,3199.6,3.96179197]
[1764809360606,0.00469197,3200.3,3200.2,3.9571]
[1764809360903,0.00368216,3200.5,3200.4,3.9571]
[1764809361102,0.00368216,3200.5,3200.4,4.79288146]
[1764809361493,2.0217,3200.4,3200.3,1.11437528]
[1764809361698,4.0572,3200.3,3200.2,5.1872]
[1764809362190,4.0572,3200.3,3200.2,7.1649]
[1764809362806,4.0572,3200.3,3200.2,3.2078]
[1764809364393,4.0572,3200.3,3199.8,1.11437528]
[1764809364394,4.0572,3200.1,3199.8,3.2078]
[1764809364607,4.0572,3199.9,3199.8,5.1872]
[1764809365197,4.0572,3199.9,3199.8,7.1649]
[1764809365198,2.0217,3199.9,3199.8,7.1649]
[1764809365710,2.0217,3200.1,3200.0,3.1387]
[1764809365899,2.0217,3200.1,3200.0,5.95248012]
[1764809366505,1.14778216,3200.5,3200.0,5.95248012]
[1764809367201,4.06088216,3200.5,3200.4,1.9794]
[1764809369008,2.0217,3200.2,3200.1,4.79318012]
[1764809369211,4.0572,3200.2,3200.1,3.9571]
[1764809369604,4.0572,3200.2,3200.0,0.83608012]
[1764809369605,2.0217,3200.1,3200.0,0.83608012]
[1764809369805,4.0572,3200.1,3200.0,2.81548012]
[1764809370711,4.0572,3200.1,3200.0,1.9794]
[1764809370911,4.0572,3200.1,3200.0,4.79318012]
[1764809371807,4.0572,3200.1,3200.0,2.81548012]
[1764809372007,4.0572,3200.1,3200.0,0.83608012]
[1764809374814,4.0067,3200.0,3199.9,2.81548012]
[1764809375115,4.0067,3200.0,3199.9,4.66938012]
[1764809375313,4.0067,3200.0,3199.9,4.66969834]
[1764809375712,4.32893552,3200.0,3199.9,0.83639834]
[1764809375918,3.7585,3199.9,3199.8,5.0548]
[1764809376113,2.09573552,3199.9,3199.8,6.9087]
[1764809377219,0.32223552,3199.9,3199.8,6.9087]
[1764809377418,2.09573552,3199.9,3199.8,6.9087]
[1764809378015,4.08073552,3199.9,3199.8,6.9087]
[1764809378725,0.32223552,3199.9,3199.8,6.9087]
[1764809378921,0.32223552,3200.4,3199.8,6.9087]
[1764809379125,4.08073552,3200.3,3200.2,1.847]
[1764809380322,4.08073552,3200.3,3199.8,3.2078]
[1764809380523,4.08073552,3200.2,3200.1,1.847]
[1764809382229,3.7585,3199.9,3199.8,4.04419834]
[1764809382525,3.7585,3199.9,3199.6,0.84109031]
[1764809382526,3.7585,3199.7,3199.6,0.84109031]
[1764809382725,4.08073552,3199.7,3199.6,0.84109031]
[1764809382922,4.08073552,3199.7,3199.6,4.54199031]
[1764809383118,2.09573552,3199.7,3199.6,4.54199031]
[1764809383326,1.14778216,3200.5,3199.6,3.70559197]
[1764809383522,0.3223985,3200.4,3199.8,3.2078]
[1764809383723,0.3223985,3200.3,3199.8,4.04507069]
[1764809383926,3.7585,3200.3,3200.2,1.847]
[1764809384228,4.08088496,3200.3,3199.8,3.2078]
[1764809384429,4.08088496,3200.2,3200.1,3.7009]
[1764809385730,2.09588496,3200.2,3200.1,3.7009]
[1764809386032,3.72378496,3200.2,3200.1,3.7009]
[1764809387225,3.72378496,3200.2,3200.1,1.847]
[1764809387834,3.72378496,3200.2,3200.1,3.5982]
[1764809388535,0.32238496,3200.2,3200.1,3.5982]
[1764809388736,1.6771,3200.4,3200.3,3.3633]
[1764809388935,1.99963736,3200.4,3200.3,3.3633]
[1764809389431,0.32253736,3200.4,3200.3,3.3633]
[1764809389736,1.6771,3200.4,3200.3,3.3633]
[1764809389937,1.99963736,3200.4,3200.3,3.3633]
[1764809391634,3.62753736,3200.4,3200.3,3.3633]
[1764809393949,1.67259834,3201.3,3200.5,1.0416]
[1764809394143,1.67259834,3201.3,3200.5,1.87924186]
[1764809394343,1.67259834,3201.4,3200.5,1.87924186]
[1764809395045,1.67602928,3201.4,3200.5,1.87924186]
[1764809395237,1.6771,3200.7,3200.6,3.3633]
[1764809396550,3.305,3200.7,3200.6,3.3633]
[1764809397846,1.6771,3200.7,3200.6,3.3633]
[1764809398053,3.305,3200.7,3200.6,3.3633]
[1764809398451,1.6771,3200.7,3200.6,3.3633]
[1764809398953,0.00343094,3201.4,3201.3,3.3633]
[1764809399148,3.30843094,3201.4,3201.3,3.36644749]
[1764809400245,3.305,3201.9,3201.8,3.3633]
[1764809401048,1.6771,3201.9,3201.8,3.3633]
[1764809401247,4.8849,3202.3,3202.2,3.3633]
[1764809401446,1.6771,3202.7,3202.6,3.3633]
[1764809401654,4.3148,3203.0,3202.5,1.0416]
[1764809402156,3.2078,3203.1,3203.0,4.4049]
[1764809402453,4.8849,3203.4,3203.3,3.3633]
[1764809402655,5.13007679,3204.2,3204.1,1.6121]
[1764809402952,6.51508759,3204.2,3204.1,1.61452715]
[1764809403148,6.51508759,3204.2,3204.1,0.00242715]
[1764809403556,3.4463,3203.6,3203.1,3.2078]
[1764809403753,1.6994,3203.2,3203.1,6.5267]
[1764809403956,3.4686,3203.1,3203.0,0.0046845]
[1764809404457,0.9255,3203.0,3201.9,3.2078]
[1764809404749,4.9072,3202.6,3202.5,3.3189]
[1764809405551,3.47325959,3202.9,3202.8,1.6558]
[1764809405753,1.6994,3202.3,3202.2,3.3235845]
[1764809405952,6.6764,3202.3,3202.2,0.0046845]
[1764809406161,3.4686,3202.3,3202.2,0.0046845]
[1764809406958,0.00465959,3202.9,3202.8,3.3189]
[1764809407258,1.70405959,3202.9,3202.8,3.3189]
[1764809407851,1.70405959,3202.9,3202.8,1.6558]
[1764809408058,1.70405959,3202.9,3202.5,0.9723]
[1764809408059,3.4686,3202.6,3202.5,1.6558]
[1764809409159,3.4686,3202.6,3202.2,3.2124845]
[1764809411058,3.21245959,3202.9,3202.3,1.6558]
[1764809411059,3.2078,3202.4,3202.3,1.6558]
[1764809411357,3.4686,3202.7,3202.2,0.0046845]
[1764809411655,6.6764,3202.7,3202.2,0.0046845]
[1764809411861,0.00465959,3202.9,3202.8,3.3189]
[1764809412862,0.00465959,3202.9,3202.8,6.5267]
[1764809413056,6.6764,3203.5,3203.0,0.9723]
[1764809413456,4.9072,3203.5,3203.4,3.3189]
[1764809413956,3.2078,3203.5,3203.4,3.3189]
[1764809414262,3.2078,3203.9,3203.4,3.3189]
[1764809414468,3.2078,3203.9,3203.5,0.9723]
[1764809415055,3.2078,3203.9,3203.8,3.3189]
[1764809415663,4.9072,3203.9,3203.8,3.3189]
[1764809415864,3.4686,3203.6,3203.5,1.6558]
[1764809416469,1.6994,3203.6,3203.5,1.6558]
[1764809416660,1.6994,3203.3,3203.2,1.6558]
[1764809416857,3.4686,3202.9,3202.8,3.2078]
[1764809417062,3.4686,3202.9,3202.8,4.8636]
[1764809417264,3.4686,3202.9,3202.8,3.2078]
[1764809417461,3.4686,3202.9,3202.5,0.9723]
[1764809417658,1.7692,3202.9,3202.5,0.9723]
[1764809417862,1.6994,3202.6,3202.5,1.6558]
[1764809418261,3.2078,3203.2,3202.9,3.3189]
[1764809418463,5.08982916,3204.1,3203.1,6.5267]
[1764809418761,1.6994,3203.2,3203.1,4.8636]
[1764809418965,1.6994,3203.2,3203.1,6.5267]
[1764809419164,0.9255,3203.5,3203.1,6.5267]
[1764809420662,2.6249,3203.5,3203.4,1.6558]
[1764809421061,4.3941,3203.5,3203.1,3.2078]
[1764809421667,3.4686,3203.2,3203.1,4.8636]
[1764809422264,1.6994,3203.2,3203.1,4.8636]
[1764809422665,1.6994,3203.2,3203.1,6.5267]
[1764809423169,3.4686,3203.7,3203.1,3.2078]
[1764809423468,3.4686,3203.2,3203.1,4.8636]
[1764809426073,3.4686,3203.2,3203.1,3.2078]
[1764809426770,1.6994,3203.2,3203.1,6.5267]
[1764809426961,3.4686,3203.2,3203.1,4.8636]
[1764809427165,3.78642621,3203.2,3203.1,3.2078]
[1764809431079,3.78732914,3203.2,3203.1,3.2078]
[1764809431372,0.31872914,3203.2,3203.1,4.8636]
[1764809431561,0.31872914,3203.2,3203.1,6.5267]
[1764809431562,2.01812914,3203.2,3203.1,6.5267]
[1764809431760,3.78732914,3203.2,3203.1,3.2078]
[1764809432573,0.9255,3203.0,3202.7,3.2078]
[1764809432878,5.35062916,3202.8,3202.7,3.2078]
[1764809433172,0.31872914,3202.8,3202.7,6.5267]
[1764809433471,3.3277,3202.8,3202.7,3.2078]
[1764809433677,5.52862048,3202.8,3202.7,3.2078]
[1764809434475,5.52862048,3202.8,3202.7,4.8053]
[1764809434679,5.52862048,3202.8,3202.7,6.4392]
[1764809435774,3.85512048,3202.8,3202.7,6.4392]
[1764809436081,1.97309132,3202.8,3202.7,6.4392]
[1764809436677,0.31889132,3202.8,3202.7,6.4392]
[1764809436976,2.5797,3203.0,3202.9,3.2314]
[1764809437170,2.89872826,3203.0,3202.9,3.2314]
[1764809437371,4.57222826,3203.0,3202.9,3.2314]
[1764809437681,4.57222826,3203.0,3202.9,1.5975]
[1764809437874,4.57222826,3203.0,3202.7,3.2078]
[1764809438074,3.3277,3202.8,3202.7,3.2078]
[1764809438275,3.64672826,3202.8,3202.7,3.2078]
[1764809438571,3.3277,3202.3,3202.0,0.71154697]
[1764809438776,3.3277,3202.1,3202.0,1.60116594]
[1764809439077,3.64672826,3202.1,3202.0,1.60116594]
[1764809439680,3.64672826,3202.1,3202.0,0.00366594]
[1764809440178,3.64672826,3202.1,3202.0,3.19646594]
[1764809440479,3.64672826,3202.1,3202.0,1.61456594]
[1764809441172,0.31902826,3202.1,3202.0,4.10696594]
[1764809441375,0.0046845,3202.4,3202.3,3.1928]
[1764809441874,0.0046845,3202.4,3202.3,6.4006]
[1764809442474,0.3233694,3202.4,3202.3,6.4006]
[1764809442675,0.0046845,3202.4,3202.3,6.4006]
[1764809444180,3.1200845,3202.4,3202.3,6.4006]
[1764809444773,3.1200845,3202.4,3202.3,3.2078]
[1764809444976,5.32075815,3202.4,3202.3,3.2078]
[1764809448286,5.32075815,3202.4,3202.3,6.4006]
[1764809448481,3.43872899,3202.4,3202.3,6.4006]
[1764809448987,1.84542899,3202.4,3202.3,6.4006]
[1764809449288,0.32332899,3202.4,3202.3,6.4006]
[1764809449587,1.84542899,3202.4,3202.3,6.4006]
[1764809449882,0.32332899,3202.4,3202.3,6.4006]
[1764809450089,0.0046845,3202.4,3202.3,6.4006]
[1764809451979,0.31868266,3202.9,3202.8,3.1928]
[1764809452287,5.92292916,3203.5,3203.4,1.6109]
[1764809452482,6.24156736,3203.5,3203.4,4.8187]
[1764809454089,6.24156736,3203.5,3203.4,6.4006]
[1764809454578,1.2441382,3203.5,3203.4,6.4006]
[1764809454981,2.7662382,3203.5,3203.4,6.4006]
[1764809455181,4.3595382,3203.5,3203.4,6.4006]
[1764809456390,2.7662382,3203.5,3203.4,6.4006]
[1764809456785,4.3595382,3203.5,3203.4,6.4006]
[1764809457089,4.3639382,3203.5,3203.4,6.4006]
[1764809457994,2.7706382,3203.5,3203.4,6.4006]
[1764809458186,2.452,3203.5,3203.4,6.4006]
[1764809459492,0.00228759,3204.2,3204.1,3.1928]
[1764809459690,1.89289123,3205.3,3204.4,3.1928]
[1764809459884,1.5221,3204.5,3204.4,6.4006]
[1764809460090,0.9299,3205.0,3204.4,6.4006]
[1764809460289,2.81192916,3205.0,3204.4,6.4006]
[1764809460596,2.81518667,3205.0,3204.4,6.40415505]
[1764809460793,4.0453,3204.5,3204.4,6.40415505]
[1764809460996,4.0453,3204.5,3204.4,0.00355505]
[1764809461895,3.1154,3204.1,3204.0,3.2078]
[1764809462086,4.99742916,3204.1,3204.0,3.2078]
[1764809462286,3.1154,3203.9,3203.8,0.0046845]
[1764809462688,3.1154,3203.3,3203.2,3.2078]
[1764809462882,3.1154,3203.3,3203.2,4.82169099]
[1764809464001,3.1154,3203.3,3203.2,6.40359099]
[1764809464192,1.5221,3203.3,3203.2,6.40359099]
[1764809465286,4.0179,3203.5,3203.4,1.5597]
[1764809465598,1.4885,3203.3,3203.2,6.35529099]
[1764809465898,2.4297,3203.5,3203.4,3.1445]
[1764809466095,4.0292,3203.5,3203.4,3.1445]
[1764809466291,4.0292,3203.5,3203.4,1.5597]
[1764809466497,0.0046845,3203.6,3203.5,3.1445]
[1764809466998,3.0926845,3203.6,3203.5,3.1445]
[1764809467198,1.4931845,3203.6,3203.5,3.1445]
[1764809467800,3.0926845,3203.6,3203.5,3.1445]
[1764809468101,3.088,3203.3,3203.2,2.56565037]
[1764809469193,3.088,3203.3,3203.2,0.00299099]
[1764809469391,3.088,3202.9,3202.8,3.2078]
[1764809469597,4.0292,3202.5,3201.5,2.02487528]
[1764809469801,4.0292,3202.5,3202.4,3.2078]
[1764809469995,4.0292,3202.5,3202.4,4.7675]
[1764809470398,4.03162828,3202.5,3202.4,4.77062371]
[1764809470598,4.03162828,3202.5,3202.4,3.21092371]
[1764809471501,2.43212828,3202.5,3202.4,6.35542371]
[1764809471800,1.25891821,3202.5,3202.4,6.35542371]
[1764809472002,2.43212828,3202.5,3202.4,6.35542371]
[1764809472403,4.03162828,3202.5,3202.4,6.35542371]
[1764809473004,2.43212828,3202.5,3202.4,6.35542371]
[1764809473901,4.03162828,3202.5,3202.4,4.77062371]
[1764809474507,4.03162828,3202.5,3202.4,6.35542371]
[1764809474698,2.43212828,3202.5,3202.4,6.35542371]
[1764809474899,0.00242828,3202.5,3202.4,6.35542371]
[1764809475300,1.82864834,3203.4,3202.4,6.35542371]
[1764809475301,1.67259834,3203.8,3202.8,3.1445]
[1764809475504,1.4885,3202.9,3202.8,6.3523]
[1764809475701,3.088,3202.9,3202.8,6.3523]
[1764809476097,3.088,3202.9,3202.8,4.7675]
[1764809476299,3.09083453,3202.9,3202.8,4.7675]
[1764809476499,3.09083453,3202.9,3202.8,3.2078]
[1764809476699,0.00283453,3202.9,3202.8,6.3523]
[1764809476910,1.49133453,3202.9,3202.8,6.3523]
[1764809477204,0.00283453,3202.9,3202.8,6.3523]
[1764809477910,1.49133453,3202.9,3202.8,6.3523]
[1764809478407,0.00283453,3202.9,3202.8,6.3523]
[1764809478803,3.09083453,3202.9,3202.8,4.7675]
[1764809479101,3.09083453,3202.9,3202.8,6.3523]
[1764809479301,1.49133453,3202.9,3202.8,6.3523]
[1764809480709,0.00283453,3202.9,3202.8,6.3523]
[1764809481910,1.49133453,3202.9,3202.8,6.3523]
[1764809482712,3.09083453,3202.9,3202.8,4.7675]
[1764809483411,3.09083453,3202.9,3202.8,3.2078]
[1764809483609,3.09083453,3202.9,3202.8,6.3523]
[1764809486110,3.09083453,3202.9,3202.8,4.7675]
[1764809486510,3.09083453,3202.9,3202.8,6.3523]
[1764809486511,0.00283453,3202.9,3202.8,6.3523]
[1764809487015,3.09083453,3202.9,3202.8,3.2078]
[1764809487209,3.09083453,3202.9,3202.8,4.7675]
[1764809487516,3.09083453,3202.9,3202.8,6.3523]
[1764809488016,3.09083453,3202.9,3202.8,4.7675]
[1764809488411,3.09083453,3202.9,3202.8,3.2078]
[1764809488811,3.40642493,3202.9,3202.8,3.2078]
[1764809489110,3.40642493,3202.9,3202.8,4.7675]
[1764809489917,3.40642493,3202.9,3202.8,3.2078]
[1764809491915,5.51669438,3202.9,3202.8,3.2078]
[1764809492113,6.13946945,3202.5,3202.4,0.00069542]
[1764809492309,6.13946945,3202.5,3201.2,1.11437528]
[1764809492310,3.088,3201.3,3201.1,1.11437528]
[1764809492510,2.11026945,3201.8,3201.2,3.1445]
[1764809492720,0.31615315,3201.7,3201.2,3.1445]
[1764809492918,1.4885,3201.3,3201.2,3.1445]
[1764809493217,1.80465315,3201.3,3201.2,3.14850229]
[1764809493411,1.4931845,3201.6,3201.5,3.1085]
[1764809493719,3.31630565,3201.6,3201.5,3.1085]
[1764809494020,0.32050565,3201.6,3201.5,4.0475]
[1764809494215,0.0046845,3201.6,3201.5,7.2553]
[1764809499522,1.90633369,3202.4,3202.3,3.0776]
[1764809499726,0.31563369,3202.4,3202.3,3.0776]
[1764809500026,1.90633369,3202.4,3202.3,3.0776]
[1764809500417,3.35993369,3202.4,3202.0,0.8727]
[1764809500618,1.5907,3202.0,3201.9,6.2854]
[1764809500825,3.0443,3202.3,3202.2,1.5592]
[1764809501016,3.35983263,3202.3,3202.2,1.5592]
[1764809502225,3.35983263,3202.3,3202.2,3.0776]
[1764809503126,3.3597977,3202.3,3202.2,3.0776]
[1764809503627,0.3154977,3202.3,3202.2,3.0776]
[1764809503929,0.0046845,3202.5,3202.4,3.0776]
[1764809504227,1.5953845,3202.5,3202.4,3.0776]
[1764809504423,3.36446337,3202.5,3202.4,3.0776]
[1764809504622,1.91086337,3202.5,3202.4,3.0776]
[1764809505022,0.32016337,3202.5,3202.4,3.0776]
[1764809505228,0.0046845,3202.5,3202.4,3.0776]
[1764809508532,0.00283453,3202.9,3202.8,3.0776]
[1764809508733,0.00283453,3202.9,3202.5,0.8727]
[1764809508734,1.5907,3202.6,3202.5,3.9503]
[1764809508929,3.0443,3202.6,3202.5,3.9503]
[1764809509130,3.0443,3202.4,3202.3,3.2078]
[1764809509324,2.42582688,3202.4,3201.5,4.1468]
[1764809509528,1.5907,3201.3,3201.2,3.08160229]
[1764809509832,1.90625743,3201.3,3201.2,3.08160229]
[1764809510223,0.31555743,3201.3,3201.2,3.08160229]
[1764809510419,3.35984612,3201.5,3201.4,1.5592]
[1764809510630,0.31554611,3201.5,3201.4,3.0776]
[1764809510826,0.0046845,3202.3,3201.6,3.0776]
[1764809511033,0.32017391,3202.3,3201.6,3.0776]
[1764809511431,1.5907,3201.7,3201.6,3.0776]
[1764809511933,0.0046845,3202.3,3201.6,3.0776]
[1764809512132,0.32018539,3202.3,3201.6,3.0776]
[1764809513128,1.91088539,3202.3,3202.2,3.0776]
[1764809513333,0.32018539,3202.3,3202.2,3.0776]
[1764809514526,1.91088539,3202.3,3202.2,3.0776]
[1764809515537,3.36448539,3202.3,3202.2,1.5592]